bitfinex/quotes_BTCUSD_20250608
["timestamp","ask_amount","ask_price","bid_price","bid_amount"]
[1749341805358,0.65210442,105610.0,105600.0,0.56372107]
[1749341806432,0.65210442,105610.0,105600.0,0.59212706]
[1749341806645,0.64263607,105610.0,105600.0,0.59212709]
[1749341806871,0.65210433,105610.0,105600.0,0.56372107]
[1749341807703,0.65210433,105610.0,105600.0,0.59212587]
[1749341807909,0.65210433,105610.0,105600.0,0.56372107]
[1749341808302,0.66157277,105610.0,105600.0,0.56372107]
[1749341808494,0.65210433,105610.0,105600.0,0.56380107]
[1749341808696,0.65210442,105610.0,105600.0,0.59220493]
[1749341808905,0.65210442,105610.0,105600.0,0.56380107]
[1749341809080,0.65210442,105610.0,105600.0,0.59220484]
[1749341812198,0.65210442,105610.0,105600.0,0.56380107]
[1749341812569,0.65210442,105610.0,105600.0,0.59220191]
[1749341814064,0.65210433,105610.0,105600.0,0.59220191]
[1749341820536,0.64263607,105610.0,105600.0,0.59220191]
[1749341820740,0.62663607,105610.0,105600.0,0.59220191]
[1749341820945,0.63610433,105610.0,105600.0,0.59220191]
[1749341821160,0.64435318,105610.0,105600.0,0.6206041]
[1749341821369,0.65382135,105610.0,105600.0,0.6206041]
[1749341821583,0.64435318,105610.0,105600.0,0.6206041]
[1749341821789,0.63488517,105610.0,105600.0,0.6206041]
[1749341822032,0.64435332,105610.0,105600.0,0.6206041]
[1749341822213,0.62663616,105610.0,105600.0,0.6206041]
[1749341822424,0.64435166,105610.0,105600.0,0.6206041]
[1749341822750,0.62825195,105610.0,105600.0,0.6206041]
[1749341822953,0.60931588,105610.0,105600.0,0.6206041]
[1749341823325,0.61878457,105610.0,105600.0,0.6206041]
[1749341823734,0.61878467,105610.0,105600.0,0.6206041]
[1749341824096,0.6187847,105610.0,105600.0,0.6206041]
[1749341824300,0.60106808,105610.0,105600.0,0.6206041]
[1749341824850,0.5916,105610.0,105600.0,0.6206041]
[1749341825076,0.60106808,105610.0,105600.0,0.6206041]
[1749341826362,0.60106799,105610.0,105600.0,0.6206041]
[1749341826985,0.61053616,105610.0,105600.0,0.6206041]
[1749341831333,0.60106799,105610.0,105600.0,0.6206041]
[1749341832872,0.61053616,105610.0,105600.0,0.6206041]
[1749341833922,0.60106799,105610.0,105600.0,0.6206041]
[1749341835115,0.61053616,105610.0,105600.0,0.6206041]
[1749341835319,0.60106799,105610.0,105600.0,0.6206041]
[1749341838577,0.61053607,105610.0,105600.0,0.6206041]
[1749341839913,0.5916,105610.0,105600.0,0.6206041]
[1749341840119,0.60106808,105610.0,105600.0,0.6206041]
[1749341840323,0.60106799,105610.0,105600.0,0.6206041]
[1749341845012,0.5916,105610.0,105600.0,0.6206041]
[1749341845225,0.60106799,105610.0,105600.0,0.6206041]
[1749341845429,0.60106799,105610.0,105600.0,0.61916984]
[1749341851323,0.50224,105610.0,105600.0,0.61916984]
[1749341851525,0.59092,105610.0,105600.0,0.61916984]
[1749341854743,0.60864501,105610.0,105600.0,0.61916984]
[1749341855548,0.60864504,105610.0,105600.0,0.61916984]
[1749341855750,0.59092,105610.0,105600.0,0.61916984]
[1749341856270,0.60864504,105610.0,105600.0,0.61916984]
[1749341856503,0.60864516,105610.0,105600.0,0.61916984]
[1749341856710,0.60864515,105610.0,105600.0,0.61916984]
[1749341857249,0.60864519,105610.0,105600.0,0.61916984]
[1749341857469,0.60864518,105610.0,105600.0,0.61916984]
[1749341857669,0.6086452,105610.0,105600.0,0.61916984]
[1749341858030,0.59092,105610.0,105600.0,0.61916984]
[1749341858184,0.6086452,105610.0,105600.0,0.61916984]
[1749341858384,0.60864522,105610.0,105600.0,0.61916984]
[1749341858598,0.59092,105610.0,105600.0,0.61916984]
[1749341858797,0.60864522,105610.0,105600.0,0.61916984]
[1749341858997,0.59092,105610.0,105600.0,0.61916984]
[1749341859601,0.60864287,105610.0,105600.0,0.61916984]
[1749341859801,0.59092,105610.0,105600.0,0.61916984]
[1749341860185,0.60864286,105610.0,105600.0,0.61916984]
[1749341860386,0.59092,105610.0,105600.0,0.61916984]
[1749341860593,0.60864262,105610.0,105600.0,0.61916984]
[1749341860811,0.60038799,105610.0,105600.0,0.61916984]
[1749341860983,0.61810913,105610.0,105600.0,0.61916984]
[1749341861168,0.61810904,105610.0,105600.0,0.61916984]
[1749341861370,0.61810903,105610.0,105600.0,0.61916984]
[1749341861823,0.60038799,105610.0,105600.0,0.61916984]
[1749341862018,0.61810894,105610.0,105600.0,0.61916984]
[1749341862224,0.61810901,105610.0,105600.0,0.61916984]
[1749341862431,0.60038799,105610.0,105600.0,0.61916984]
[1749341862639,0.61810902,105610.0,105600.0,0.61916984]
[1749341862814,0.60038799,105610.0,105600.0,0.61916984]
[1749341863189,0.61810897,105610.0,105600.0,0.61916984]
[1749341863387,0.60038799,105610.0,105600.0,0.61916984]
[1749341863618,0.62757699,105610.0,105600.0,0.61916984]
[1749341863824,0.627577,105610.0,105600.0,0.61916984]
[1749341865066,0.60985607,105610.0,105600.0,0.61916984]
[1749341865334,0.627577,105610.0,105600.0,0.61916984]
[1749341865535,0.60985607,105610.0,105600.0,0.61916984]
[1749341865695,0.62757704,105610.0,105600.0,0.61916984]
[1749341865908,0.62757722,105610.0,105600.0,0.61916984]
[1749341866372,0.60985607,105610.0,105600.0,0.61916984]
[1749341866697,0.62757732,105610.0,105600.0,0.61916984]
[1749341866909,0.60985607,105610.0,105600.0,0.61916984]
[1749341867326,0.62757729,105610.0,105600.0,0.61916984]
[1749341867503,0.62757728,105610.0,105600.0,0.61916984]
[1749341867713,0.6181092,105610.0,105600.0,0.61916984]
[1749341867920,0.62757737,105610.0,105600.0,0.61916984]
[1749341868119,0.60038799,105610.0,105600.0,0.61916984]
[1749341868323,0.61810914,105610.0,105600.0,0.61916984]
[1749341868481,0.60038799,105610.0,105600.0,0.61916984]
[1749341868840,0.61810913,105610.0,105600.0,0.61916984]
[1749341869247,0.63704544,105610.0,105600.0,0.61916984]
[1749341869590,0.61932424,105610.0,105600.0,0.61916984]
[1749341870108,0.63704539,105610.0,105600.0,0.61916984]
[1749341870399,0.61932424,105610.0,105600.0,0.61916984]
[1749341870807,0.62757742,105610.0,105600.0,0.61916984]
[1749341871209,0.62757743,105610.0,105600.0,0.61916984]
[1749341871544,0.62757743,105610.0,105600.0,0.32924984]
[1749341871788,0.63704567,105610.0,105600.0,0.61760984]
[1749341872081,0.63592433,105610.0,105600.0,0.61760984]
[1749341872502,0.64417738,105610.0,105600.0,0.61760984]
[1749341873485,0.64417748,105610.0,105600.0,0.61760984]
[1749341873693,0.63592433,105610.0,105600.0,0.61760984]
[1749341873901,0.65364574,105610.0,105600.0,0.61760984]
[1749341874097,0.63592433,105610.0,105600.0,0.61760984]
[1749341874258,0.65364574,105610.0,105600.0,0.61760984]
[1749341875003,0.65364573,105610.0,105600.0,0.61760984]
[1749341875645,0.63592433,105610.0,105600.0,0.61760984]
[1749341875817,0.65364573,105610.0,105600.0,0.61760984]
[1749341875998,0.62757747,105610.0,105600.0,0.61760984]
[1749341876200,0.63704573,105610.0,105600.0,0.61760984]
[1749341877167,0.61932433,105610.0,105600.0,0.61760984]
[1749341877371,0.63704592,105610.0,105600.0,0.61760984]
[1749341878356,0.63704592,105610.0,105600.0,0.57971768]
[1749341879018,0.63704589,105610.0,105600.0,0.57971768]
[1749341879226,0.61932424,105610.0,105600.0,0.57971768]
[1749341879540,0.63704589,105610.0,105600.0,0.57971768]
[1749341880250,0.63704589,105610.0,105600.0,0.6176153]
[1749341880866,0.61932424,105610.0,105600.0,0.6176153]
[1749341881061,0.60985607,105610.0,105600.0,0.6176153]
[1749341881205,0.62757804,105610.0,105600.0,0.6176153]
[1749341881653,0.62757809,105610.0,105600.0,0.6176153]
[1749341881870,0.62757805,105610.0,105600.0,0.6176153]
[1749341882276,0.62757902,105610.0,105600.0,0.6176153]
[1749341882487,0.60864389,105610.0,105600.0,0.6176153]
[1749341882683,0.60038808,105610.0,105600.0,0.6176153]
[1749341883061,0.61811236,105610.0,105600.0,0.6176153]
[1749341883262,0.60038808,105610.0,105600.0,0.6176153]
[1749341883486,0.61811236,105610.0,105600.0,0.6176153]
[1749341884060,0.60038808,105610.0,105600.0,0.6176153]
[1749341884276,0.61811227,105610.0,105600.0,0.6176153]
[1749341884477,0.6181123,105610.0,105600.0,0.6176153]
[1749341884682,0.61811222,105610.0,105600.0,0.6176153]
[1749341885457,0.60038799,105610.0,105600.0,0.6176153]
[1749341885850,0.61811224,105610.0,105600.0,0.6176153]
[1749341886271,0.60038799,105610.0,105600.0,0.6176153]
[1749341886471,0.61811221,105610.0,105600.0,0.6176153]
[1749341886790,0.61811222,105610.0,105600.0,0.6176153]
[1749341887196,0.60864427,105610.0,105600.0,0.6176153]
[1749341887603,0.61811245,105610.0,105600.0,0.6176153]
[1749341887799,0.60038808,105610.0,105600.0,0.6176153]
[1749341888006,0.61811236,105610.0,105600.0,0.6176153]
[1749341888171,0.6181124,105610.0,105600.0,0.6176153]
[1749341888375,0.60038808,105610.0,105600.0,0.6176153]
[1749341888579,0.61811327,105610.0,105600.0,0.6176153]
[1749341888776,0.60864519,105610.0,105600.0,0.6176153]
[1749341888984,0.61811327,105610.0,105600.0,0.6176153]
[1749341889299,0.61811423,105610.0,105600.0,0.6176153]
[1749341889502,0.61811424,105610.0,105600.0,0.6176153]
[1749341889820,0.63451424,105610.0,105600.0,0.6176153]
[1749341890026,0.64398273,105610.0,105600.0,0.6176153]
[1749341890373,0.64398275,105610.0,105600.0,0.6176153]
[1749341890841,0.64398273,105610.0,105600.0,0.6176153]
[1749341891056,0.62625625,105610.0,105600.0,0.6176153]
[1749341891283,0.6439829,105610.0,105600.0,0.6176153]
[1749341891499,0.64398294,105610.0,105600.0,0.6176153]
[1749341891712,0.64398295,105610.0,105600.0,0.6176153]
[1749341891918,0.62625625,105610.0,105600.0,0.6176153]
[1749341892119,0.64398403,105610.0,105600.0,0.6176153]
[1749341892855,0.64398527,105610.0,105600.0,0.6176153]
[1749341893280,0.64398523,105610.0,105600.0,0.6176153]
[1749341894835,0.64398525,105610.0,105600.0,0.6176153]
[1749341895159,0.62625625,105610.0,105600.0,0.6176153]
[1749341895363,0.65345576,105610.0,105600.0,0.6176153]
[1749341895815,0.65345627,105610.0,105600.0,0.6176153]
[1749341896604,0.63572451,105610.0,105600.0,0.6176153]
[1749341897445,0.65345627,105610.0,105600.0,0.6176153]
[1749341897621,0.61811984,105610.0,105600.0,0.6176153]
[1749341898037,0.61811997,105610.0,105600.0,0.6176153]
[1749341898445,0.61811993,105610.0,105600.0,0.3292553]
[1749341898642,0.60038808,105610.0,105600.0,0.6175753]
[1749341898854,0.61811992,105610.0,105600.0,0.6175753]
[1749341899812,0.61811979,105610.0,105600.0,0.6175753]
[1749341900811,0.61811978,105610.0,105600.0,0.6175753]
[1749341901946,0.61811934,105610.0,105600.0,0.6175753]
[1749341902292,0.60038808,105610.0,105600.0,0.6175753]
[1749341902675,0.61811942,105610.0,105600.0,0.6175753]
[1749341903486,0.61811952,105610.0,105600.0,0.6175753]
[1749341903688,0.60038808,105610.0,105600.0,0.6175753]
[1749341903922,0.61811952,105610.0,105600.0,0.6175753]
[1749341904910,0.61811498,105610.0,105600.0,0.6175753]
[1749341905445,0.61811449,105610.0,105600.0,0.6175753]
[1749341905687,0.60038808,105610.0,105600.0,0.6175753]
[1749341905917,0.61811439,105610.0,105600.0,0.6175753]
[1749341906562,0.60864631,105610.0,105600.0,0.6175753]
[1749341907014,0.6086463,105610.0,105600.0,0.6175753]
[1749341907235,0.61811429,105610.0,105600.0,0.6175753]
[1749341907460,0.61811439,105610.0,105600.0,0.6175753]
[1749341907678,0.60038799,105610.0,105600.0,0.6175753]
[1749341907916,0.61811438,105610.0,105600.0,0.6175753]
[1749341908826,0.60038799,105610.0,105600.0,0.6175753]
[1749341908961,0.61811429,105610.0,105600.0,0.6175753]
[1749341909598,0.61811428,105610.0,105600.0,0.6175753]
[1749341910222,0.61811429,105610.0,105600.0,0.6175753]
[1749341910636,0.60038799,105610.0,105600.0,0.6175753]
[1749341910838,0.6181143,105610.0,105600.0,0.6175753]
[1749341911039,0.61811432,105610.0,105600.0,0.6175753]
[1749341911245,0.60038799,105610.0,105600.0,0.6175753]
[1749341911475,0.61811432,105610.0,105600.0,0.6175753]
[1749341912445,0.60038799,105610.0,105600.0,0.6175753]
[1749341912628,0.61811422,105610.0,105600.0,0.6175753]
[1749341912828,0.60038799,105610.0,105600.0,0.6175753]
[1749341913023,0.62758229,105610.0,105600.0,0.6175753]
[1749341913713,0.60985607,105610.0,105600.0,0.6175753]
[1749341914223,0.59092,105610.0,105600.0,0.6501753]
[1749341915514,0.59092,105610.0,105600.0,0.6339753]
[1749341915950,0.60038808,105610.0,105600.0,0.6175753]
[1749341916361,0.59092,105610.0,105600.0,0.6175753]
[1749341916766,0.60038808,105610.0,105600.0,0.6175753]
[1749341917604,0.60985625,105610.0,105600.0,0.6175753]
[1749341919569,0.60038808,105610.0,105600.0,0.6175753]
[1749341919782,0.60985634,105610.0,105600.0,0.6175753]
[1749341925768,0.60038808,105610.0,105600.0,0.6175753]
[1749341925973,0.60985625,105610.0,105600.0,0.6175753]
[1749341927283,0.61932451,105610.0,105600.0,0.6175753]
[1749341927773,0.60038808,105610.0,105600.0,0.6175753]
[1749341927973,0.60985625,105610.0,105600.0,0.6175753]
[1749341929198,0.51170799,105610.0,105600.0,0.6175753]
[1749341929403,0.51170799,105610.0,105600.0,0.6485753]
[1749341929404,0.59970799,105610.0,105600.0,0.6485753]
[1749341929754,0.59024,105610.0,105600.0,0.6485753]
[1749341929958,0.59970808,105610.0,105600.0,0.6485753]
[1749341930328,0.59024,105610.0,105600.0,0.6485753]
[1749341930529,0.59970808,105610.0,105600.0,0.6485753]
[1749341930759,0.59024,105610.0,105600.0,0.6485753]
[1749341931308,0.59970808,105610.0,105600.0,0.6485753]
[1749341932872,0.59970808,105610.0,105600.0,0.6328753]
[1749341933114,0.59024,105610.0,105600.0,0.6328753]
[1749341933428,0.59970808,105610.0,105600.0,0.6328753]
[1749341933788,0.59024,105610.0,105600.0,0.6328753]
[1749341934018,0.59970808,105610.0,105600.0,0.6328753]
[1749341935656,0.59024,105610.0,105600.0,0.6328753]
[1749341935856,0.59970808,105610.0,105600.0,0.6490753]
[1749341937261,0.59970808,105610.0,105600.0,0.6328753]
[1749341937622,0.59024,105610.0,105600.0,0.6328753]
[1749341937821,0.59970808,105610.0,105600.0,0.6328753]
[1749341938903,0.59024,105610.0,105600.0,0.6328753]
[1749341939257,0.59970808,105610.0,105600.0,0.6328753]
[1749341940273,0.59970808,105610.0,105600.0,0.6480753]
[1749341942123,0.59970808,105610.0,105600.0,0.6328753]
[1749341943069,0.59024,105610.0,105600.0,0.6328753]
[1749341943268,0.59970817,105610.0,105600.0,0.6328753]
[1749341943834,0.59970808,105610.0,105600.0,0.6328753]
[1749341944029,0.59024,105610.0,105600.0,0.6328753]
[1749341944440,0.59970799,105610.0,105600.0,0.6328753]
[1749341946734,0.60917607,105610.0,105600.0,0.6328753]
[1749341946946,0.59970799,105610.0,105600.0,0.6328753]
[1749341949275,0.59024,105610.0,105600.0,0.6328753]
[1749341949478,0.59970799,105610.0,105600.0,0.6328753]
[1749341950039,0.59024,105610.0,105600.0,0.6328753]
[1749341950375,0.59970799,105610.0,105600.0,0.6328753]
[1749341950874,0.59970799,105610.0,105600.0,0.6492753]
[1749341951425,0.59024,105610.0,105600.0,0.6328753]
[1749341951633,0.59970799,105610.0,105600.0,0.6328753]
[1749341953972,0.59024,105610.0,105600.0,0.6328753]
[1749341954174,0.59970799,105610.0,105600.0,0.6328753]
[1749341955388,0.617431,105610.0,105600.0,0.6328753]
[1749341956004,0.59024,105610.0,105600.0,0.6328753]
[1749341956210,0.61743098,105610.0,105600.0,0.6328753]
[1749341956441,0.59970799,105610.0,105600.0,0.6328753]
[1749341956981,0.61743098,105610.0,105600.0,0.6328753]
[1749341957331,0.61743097,105610.0,105600.0,0.6328753]
[1749341957536,0.60796298,105610.0,105600.0,0.6328753]
[1749341957731,0.59024,105610.0,105600.0,0.6328753]
[1749341957951,0.59970799,105610.0,105600.0,0.6328753]
[1749341958296,0.61743099,105610.0,105600.0,0.6328753]
[1749341958512,0.61743099,105610.0,105600.0,0.6175753]
[1749341958818,0.59024,105610.0,105600.0,0.6175753]
[1749341958953,0.60796298,105610.0,105600.0,0.6175753]
[1749341959159,0.59970799,105610.0,105600.0,0.6175753]
[1749341959893,0.61743102,105610.0,105600.0,0.6175753]
[1749341960096,0.59970799,105610.0,105600.0,0.3292553]
[1749341960266,0.59024,105610.0,105600.0,0.6174553]
[1749341960465,0.59970799,105610.0,105600.0,0.6174553]
[1749341960665,0.61743102,105610.0,105600.0,0.6174553]
[1749341962079,0.59970799,105610.0,105600.0,0.6174553]
[1749341962285,0.617431,105610.0,105600.0,0.6174553]
[1749341962685,0.60796301,105610.0,105600.0,0.6174553]
[1749341962888,0.59024,105610.0,105600.0,0.6174553]
[1749341964110,0.60796299,105610.0,105600.0,0.6174553]
[1749341964726,0.607963,105610.0,105600.0,0.6174553]
[1749341965070,0.59024,105610.0,105600.0,0.6174553]
[1749341965191,0.60796299,105610.0,105600.0,0.6174553]
[1749341966327,0.607963,105610.0,105600.0,0.6174553]
[1749341966532,0.59024,105610.0,105600.0,0.6174553]
[1749341966787,0.60796299,105610.0,105600.0,0.6174553]
[1749341967022,0.60796298,105610.0,105600.0,0.6174553]
[1749341967342,0.60796299,105610.0,105600.0,0.6174553]
[1749341967813,0.60796299,105610.0,105600.0,0.6331553]
[1749341968150,0.519963,105610.0,105600.0,0.72955478]
[1749341968424,0.60796314,105610.0,105600.0,1.04191081]
[1749341968627,0.60796316,105610.0,105600.0,1.04191081]
[1749341968747,0.60796321,105610.0,105600.0,1.04191081]
[1749341969145,0.59024,105610.0,105600.0,1.04191081]
[1749341969386,0.60796321,105610.0,105600.0,1.04191081]
[1749341970016,0.59024,105610.0,105600.0,0.74585478]
[1749341970216,0.59024,105610.0,105600.0,1.04191081]
[1749341970456,0.60796321,105610.0,105600.0,1.04191081]
[1749341970679,0.59024,105610.0,105600.0,1.04191081]
[1749341970890,0.60796321,105610.0,105600.0,1.04191081]
[1749341971436,0.59024,105610.0,105600.0,1.04191081]
[1749341973497,0.59024,105610.0,105600.0,0.74585478]
[1749341973941,0.59024,105610.0,105600.0,1.04191081]
[1749341975677,0.59024,105610.0,105600.0,1.00401319]
[1749341976287,0.59024,105610.0,105600.0,0.70795716]
[1749341976488,0.59024,105610.0,105600.0,0.69895716]
[1749341977534,0.59024,105610.0,105600.0,0.73684149]
[1749341978565,0.59024,105610.0,105600.0,0.69895716]
[1749341979939,0.5902,105610.0,105600.0,0.69895716]
[1749341981248,0.50224,105610.0,105600.0,0.69895716]
[1749341981459,0.5902,105610.0,105600.0,0.99471319]
[1749341988030,0.5902,105610.0,105600.0,1.30531007]
[1749341988275,0.50224,105610.0,105600.0,1.24850704]
[1749341988442,0.5902,105610.0,105600.0,1.32424442]
[1749341990150,0.5902,105610.0,105600.0,2.02124442]
[1749341990349,0.5892,105610.0,105600.0,2.01624442]
[1749341990575,0.5892,105610.0,105600.0,2.02024442]
[1749341990812,0.5892,105610.0,105600.0,2.02424442]
[1749341992826,0.5892,105610.0,105600.0,2.02024442]
[1749341992967,0.5892,105610.0,105600.0,2.02524442]
[1749341993391,0.5892,105610.0,105600.0,2.02124442]
[1749341993796,0.5892,105610.0,105600.0,2.02524442]
[1749341997056,0.5892,105610.0,105600.0,2.07524442]
[1749341997259,0.5892,105610.0,105600.0,2.33950704]
[1749341997461,0.5892,105610.0,105600.0,2.43417877]
[1749342000164,0.09796,105610.0,105600.0,2.7302348]
[1749342009006,0.09796,105610.0,105600.0,2.7586788]
[1749342012234,0.09796,105610.0,105600.0,2.8086788]
[1749342012648,0.01,105610.0,105600.0,2.8086788]
[1749342012833,0.01,105610.0,105600.0,2.7996788]
[1749342013190,0.01,105610.0,105600.0,2.8994288]
[1749342013517,0.01,105610.0,105600.0,2.8106788]
[1749342013518,0.011,105610.0,105600.0,2.8106788]
[1749342014526,0.011,105610.0,105600.0,2.71600707]
[1749342018757,0.08988,105630.0,105620.0,0.23230154]
[1749342018958,0.08988,105630.0,105620.0,1.98437946]
[1749342019877,0.08988,105630.0,105620.0,1.98637946]
[1749342020533,0.08988,105630.0,105620.0,2.01419494]
[1749342024449,0.10498,105630.0,105620.0,2.01419494]
[1749342035463,0.10498,105630.0,105620.0,1.93858856]
[1749342035664,0.08988,105630.0,105620.0,1.93858856]
[1749342040091,0.08988,105630.0,105620.0,1.23858856]
[1749342041185,0.002,105630.0,105620.0,1.23858856]
[1749342041365,0.08984,105630.0,105620.0,1.23858856]
[1749342042195,0.08984,105630.0,105620.0,1.53648856]
[1749342043160,0.08984,105630.0,105620.0,2.23648856]
[1749342044267,0.08984,105630.0,105620.0,2.33099654]
[1749342071649,0.08984,105630.0,105620.0,1.63099654]
[1749342074717,0.08984,105630.0,105620.0,2.33099654]
[1749342081879,0.002,105630.0,105620.0,1.73888448]
[1749342082088,0.002,105630.0,105620.0,1.75518448]
[1749342082264,0.002,105630.0,105620.0,1.73888448]
[1749342082467,0.08984,105630.0,105620.0,2.41379654]
[1749342082670,0.08984,105630.0,105620.0,2.75379654]
[1749342100775,0.002,105630.0,105620.0,2.75379654]
[1749342102865,0.002,105630.0,105620.0,2.46583654]
[1749342103066,0.002,105630.0,105620.0,2.72243654]
[1749342103467,0.002,105630.0,105620.0,2.13032448]
[1749342103670,0.002,105630.0,105620.0,2.72243654]
[1749342106071,0.002,105630.0,105620.0,2.02243654]
[1749342109233,0.002,105630.0,105620.0,2.72243654]
[1749342117143,0.002,105630.0,105620.0,2.13032448]
[1749342117358,0.002,105630.0,105620.0,2.72243654]
[1749342125316,0.002,105630.0,105620.0,1.84092448]
[1749342125548,0.0335,105630.0,105620.0,1.08243758]
[1749342125773,0.05243302,105630.0,105620.0,1.09190485]
[1749342125999,0.07963209,105630.0,105620.0,0.41085518]
[1749342126229,0.2595059,105630.0,105620.0,0.09669483]
[1749342126451,0.58177369,105630.0,105620.0,0.03041102]
[1749342126683,0.60615248,105630.0,105620.0,0.01088116]
[1749342126919,0.6061522,105630.0,105620.0,0.01088126]
[1749342127353,0.59950351,105630.0,105620.0,0.001]
[1749342127581,0.58377369,105630.0,105620.0,0.001]
[1749342127796,0.60143263,105630.0,105620.0,0.001]
[1749342128223,0.60143151,105630.0,105620.0,0.001]
[1749342128462,0.60143151,105630.0,105620.0,0.19982597]
[1749342128699,0.59196478,105630.0,105620.0,0.19982597]
[1749342128931,0.59196478,105630.0,105620.0,0.20929378]
[1749342129377,0.57430696,105630.0,105620.0,0.20829378]
[1749342129592,0.59396476,105630.0,105620.0,0.20829378]
[1749342129827,0.59396482,105630.0,105620.0,0.19882597]
[1749342130033,0.57630696,105630.0,105620.0,0.19882597]
[1749342130254,0.5939607,105630.0,105620.0,0.20829378]
[1749342130878,0.57630696,105630.0,105620.0,0.19882597]
[1749342131743,0.57630696,105630.0,105620.0,0.20829378]
[1749342131960,0.57630696,105630.0,105620.0,0.19882597]
[1749342132381,0.66466696,105630.0,105620.0,0.19882597]
[1749342132831,0.05083517,105620.0,105610.0,0.21777854]
[1749342133053,0.54195481,105620.0,105610.0,0.21777854]
[1749342133490,0.55142253,105620.0,105610.0,0.21777854]
[1749342133712,0.55142244,105620.0,105610.0,0.21777854]
[1749342134565,0.54195454,105620.0,105610.0,0.21777854]
[1749342134770,0.54295454,105620.0,105610.0,0.21777854]
[1749342134977,0.54395454,105620.0,105610.0,0.21777854]
[1749342142010,0.54395454,105620.0,105610.0,0.50641854]
[1749342144928,0.56288971,105620.0,105610.0,0.50641854]
[1749342145807,0.55342199,105620.0,105610.0,0.50641854]
[1749342146014,0.56288962,105620.0,105610.0,0.50641854]
[1749342146361,0.55342199,105620.0,105610.0,0.50641854]
[1749342146563,0.56288962,105620.0,105610.0,0.50641854]
[1749342147154,0.55342199,105620.0,105610.0,0.50641854]
[1749342147356,0.56288953,105620.0,105610.0,0.50641854]
[1749342150666,0.56288953,105620.0,105610.0,0.50677854]
[1749342150870,0.57235734,105620.0,105610.0,0.50677863]
[1749342151078,0.57235734,105620.0,105610.0,0.5162468]
[1749342151319,0.57235725,105620.0,105610.0,0.5162468]
[1749342151923,0.57235725,105620.0,105610.0,0.5250819]
[1749342152353,0.56288953,105620.0,105610.0,0.5250819]
[1749342152527,0.57235725,105620.0,105610.0,0.5250819]
[1749342152738,0.57235725,105620.0,105610.0,0.52508593]
[1749342153546,0.56288953,105620.0,105610.0,0.52508593]
[1749342154132,0.55342199,105620.0,105610.0,0.52508593]
[1749342154434,0.55342199,105620.0,105610.0,0.54465782]
[1749342154656,0.55342199,105620.0,105610.0,0.55353948]
[1749342155499,0.55342199,105620.0,105610.0,0.59141878]
[1749342156027,0.55342199,105620.0,105610.0,0.58253712]
[1749342156277,0.55342199,105620.0,105610.0,0.56360069]
[1749342156487,0.56288962,105620.0,105610.0,0.59141878]
[1749342156703,0.56288962,105620.0,105610.0,0.58253712]
[1749342156919,0.55342199,105620.0,105610.0,0.58253712]
[1749342157128,0.55342199,105620.0,105610.0,0.59141878]
[1749342158016,0.55342199,105620.0,105610.0,0.58253712]
[1749342158222,0.64182199,105620.0,105610.0,0.59141883]
[1749342159491,0.64182199,105620.0,105610.0,0.58253712]
[1749342159698,0.64182199,105620.0,105610.0,0.58233712]
[1749342159903,0.64182199,105620.0,105610.0,0.59121883]
[1749342160149,0.64182199,105620.0,105610.0,0.59121887]
[1749342160768,0.64182199,105620.0,105610.0,0.58233712]
[1749342160975,0.64182199,105620.0,105610.0,0.59121886]
[1749342161186,0.65954614,105620.0,105610.0,0.59121896]
[1749342161406,0.64182199,105620.0,105610.0,0.59121896]
[1749342161616,0.65954626,105620.0,105610.0,0.59113896]
[1749342161823,0.65954626,105620.0,105610.0,0.58225712]
[1749342162030,0.64182199,105620.0,105610.0,0.59113896]
[1749342162243,0.65954627,105620.0,105610.0,0.59113896]
[1749342162459,0.65007873,105620.0,105610.0,0.59113896]
[1749342162920,0.65007873,105620.0,105610.0,0.30241896]
[1749342163105,0.64182181,105620.0,105610.0,0.59109922]
[1749342163310,0.64182181,105620.0,105610.0,0.2651261]
[1749342163537,0.65954707,105620.0,105610.0,0.5537661]
[1749342163737,0.65954811,105620.0,105610.0,0.5537661]
[1749342163942,0.65954834,105620.0,105610.0,0.5537661]
[1749342164141,0.65954806,105620.0,105610.0,0.56264813]
[1749342164785,0.6500807,105620.0,105610.0,0.56264813]
[1749342165013,0.65008042,105620.0,105610.0,0.56264813]
[1749342165233,0.63235445,105620.0,105610.0,0.56264813]
[1749342165448,0.65008038,105620.0,105610.0,0.56264813]
[1749342165888,0.64061319,105620.0,105610.0,0.56264813]
[1749342166566,0.63235445,105620.0,105610.0,0.56264728]
[1749342166783,0.65007909,105620.0,105610.0,0.56264728]
[1749342167203,0.63235445,105620.0,105610.0,0.5537661]
[1749342167426,0.65007922,105620.0,105610.0,0.56264728]
[1749342167634,0.65007921,105620.0,105610.0,0.56264728]
[1749342167869,0.6311448,105620.0,105610.0,0.56264728]
[1749342168089,0.64061198,105620.0,105610.0,0.56264728]
[1749342168302,0.64061187,105620.0,105610.0,0.56264728]
[1749342168514,0.64061195,105620.0,105610.0,0.5537661]
[1749342168744,0.64061201,105620.0,105610.0,0.56264727]
[1749342168954,0.64061203,105620.0,105610.0,0.5537661]
[1749342169180,0.63114484,105620.0,105610.0,0.56264727]
[1749342169393,0.64061202,105620.0,105610.0,0.6194628]
[1749342169619,0.64061193,105620.0,105610.0,0.6194628]
[1749342169835,0.62431193,105620.0,105610.0,0.6194628]
[1749342170050,0.61484484,105620.0,105610.0,0.61946133]
[1749342170283,0.59924253,105620.0,105610.0,0.61946133]
[1749342170530,0.58152,105620.0,105610.0,0.61946131]
[1749342170743,0.59098709,105620.0,105610.0,0.61946131]
[1749342170963,0.58152,105620.0,105610.0,0.61946131]
[1749342171145,0.59762,105620.0,105610.0,0.61946131]
[1749342171374,0.599243,105620.0,105610.0,0.61946131]
[1749342171808,0.59924286,105620.0,105610.0,0.61946131]
[1749342172013,0.59924283,105620.0,105610.0,0.61058163]
[1749342172228,0.59924283,105620.0,105610.0,0.71586062]
[1749342172430,0.59924277,105620.0,105610.0,0.71586062]
[1749342172848,0.58152,105620.0,105610.0,0.71586062]
[1749342173253,0.58152,105620.0,105610.0,0.71585915]
[1749342173474,0.58152,105620.0,105610.0,0.70698111]
[1749342173901,0.58152,105620.0,105610.0,0.71585915]
[1749342174330,0.58152,105620.0,105610.0,0.70698111]
[1749342174537,0.58152,105620.0,105610.0,0.71585915]
[1749342174740,0.58152,105620.0,105610.0,0.71585896]
[1749342175634,0.58152,105620.0,105610.0,0.70698111]
[1749342175842,0.58152,105620.0,105610.0,0.71585841]
[1749342176089,0.58152,105620.0,105610.0,0.70698111]
[1749342176297,0.58152,105620.0,105610.0,0.71585841]
[1749342177729,0.58152,105620.0,105610.0,0.70698111]
[1749342177960,0.58152,105620.0,105610.0,0.71585841]
[1749342178838,0.58152,105620.0,105610.0,0.71585818]
[1749342179073,0.58152,105620.0,105610.0,0.70698111]
[1749342179504,0.58152,105620.0,105610.0,0.71585818]
[1749342180565,0.58152,105620.0,105610.0,0.70698111]
[1749342180767,0.58152,105620.0,105610.0,0.71585818]
[1749342181821,0.58152,105620.0,105610.0,0.70698111]